{"text_format":"1","workbook":"xlsx","n_sheets":3,"sheets":["Реестр","Отчет","Реестр (2)"],"not_rendered":{"charts":0,"images":0,"macros":1,"external_links":1,"defined_names":20,"comments":0,"pivot_tables":0},"unopened":[],"bounds":{"document_bytes":16777216,"sheet_cells":100000,"rows_first":2000,"rows_last":500,"rows_between":2000,"halvings":0,"cell_chars":16384,"cell_head_chars":4096},"cells_cut":0,"cells_raw":0,"read":"whole","date_system":"1900"}

{"sheet":"Реестр","index":0,"n_rows":11,"n_cols":19,"rows_kept":11,"cut":false,"hidden":false,"merged":[]}
[]
[]
["Товар","Клиент","Дата счета","номер счета",null,null,null,null,null,null,null,null,null,null,null,null,"Дата отгрузки","№ транс. Средства","Склад"]
["Товар2","Клиент4","2019-10-11",23,null,null,null,null,null,null,null,null,null,null,null,null,"21,22.10.2019","ВP 7651 СК / ВT 5461 ХМ","склад2"]
["Товар3","Клиент7","2019-11-04",45,null,null,null,null,null,null,null,null,null,null,null,null,"2019-11-05","СP 5689 FА  / СВ 3886 ХТ ;                  СА 5896 ВС / СГ 2356 ХХ","склад3"]
["Товар4","Клиент7","2019-11-04",48,null,null,null,null,null,null,null,null,null,null,null,null,"2019-11-05","   СА 5896 ВС / СГ 2356 ХХ","склад3"]
[]
[]
["Выделяем одну или несколько ячеек и жмем кнопку \"Копировать\"  и  данные переносим на Лист (\"Отчет\"). "]
[]
["Как при копировании сохранить форматы(шрифт и границы) и что бы добавить на лист \"Отчет\" дополнительные данные в   таблицу.(Дата и Операция)"]

{"sheet":"Отчет","index":1,"n_rows":8,"n_cols":12,"rows_kept":8,"cut":false,"hidden":false,"merged":[]}
[]
[null,"Отчет по отгрузкам"]
["Дата отгрузки","Товар","Операция","Склад ",null,null,"Клиент",null,null,"№ транс. Средства",null,"номер счета"]
[null,"Товар2",null,"склад2",null,null,"Клиент4",null,null,"ВP 7651 СК / ВT 5461 ХМ",null,23]
[null,"Товар3",null,"склад3",null,null,"Клиент7",null,null,"СP 5689 FА  / СВ 3886 ХТ ;                  СА 5896 ВС / СГ 2356 ХХ",null,45]
["2019-11-26","Товар4","Расход","склад3",null,null,"Клиент7",null,null,"   СА 5896 ВС / СГ 2356 ХХ",null,48]
[]
["Добавить - Дата Сегодня",null,"добавить Слово \"Расход\""]

{"sheet":"Реестр (2)","index":2,"n_rows":8,"n_cols":23,"rows_kept":8,"cut":false,"hidden":true,"merged":[]}
[]
[]
["Назва товару ","Постачальник","Покупець","Дата счета","номер счета","Дата договора","Номер договора","Кіл-сть (дог. ± факт), т. ","Ціна, грн./т.","Сума, грн.","Оплачено, грн.","Оплачено,тн","Дата оплати","Дод. витрати, грн.","Поточне сальдо, грн.","Факт. постав., т."," Факт.Отгружено на сумму,грн","Дата отгрузки","№ транс. Средства ваг/авто","Склад отгрузки","Статус отгрузки ","Ответственний","Примітки"]
["ДОБРИВО KaliyMag-Agro gran",null,"ТОВ \"ПРОМІНЬ\"","2019-10-11",237,null,null,60.35,8600.0040000000008,{"$f":"H4*I4","v":519010.24140000006},{"$f":"519010.24+255850.12","v":774860.36},{"$f":"K4/I4","v":90.099999953488378},"2019-10-17",null,{"$f":"P4*I4-K4","v":-255850.11859999993},{"$f":"4.25+39.95+16.15","v":60.35},{"$f":"P4*I4","v":519010.24140000006},"21,22.10.2019","ВІ 7651 СК / ВІ 5561 ХМ;                 СВ 7205 ВВ / СВ 7754 ХТ ;                 СВ 7957 ВВ / СВ 7843 ХТ","Бахмач",{"$f":"IF(A4=\"\",\"-\",IF(M4=\"\",\"запланировано\",IF(P4=\"\",\"не отгружено\",IF(OR(L4>P4,L4<H4),\"частично отгружено\",IF(L4<P4,\"перегружено\",\"отгружено\")))))","v":"частично отгружено"}]
["ДОБРИВО KaliyMag-Agro gran",null,"ТОВ \"УКРАЇНСЬКА АГРОПРОМИСЛОВА Група\"","2019-11-04",255,null,null,85,8690.4,738684,{"$f":"369342+369342","v":738684},{"$f":"K5/I5","v":85},"2019-11-06",null,{"$f":"P5*I5-K5","v":-369342},{"$f":"21.25*2","v":42.5},{"$f":"P5*I5","v":369342},"2019-11-05","СВ 4729 ВА  / СВ 3886 ХТ ;                  СВ 6023 ВС / СВ 8778 ХТ","Бахмач",{"$f":"IF(A5=\"\",\"-\",IF(M5=\"\",\"запланировано\",IF(P5=\"\",\"не отгружено\",IF(OR(L5>P5,L5<H5),\"частично отгружено\",IF(L5<P5,\"перегружено\",\"отгружено\")))))","v":"частично отгружено"}]
["Добриво мінеральне гранульоване \"GRANFOSKA PK 12-18+ME\"",null,"ФГ Мотика","2019-11-04",256,null,null,22,8000.0039999999999,176000.09,176000.09,{"$f":"K6/I6","v":22.000000249999875},"2019-11-05",null,{"$f":"P6*I6-K6","v":-176000.09},null,{"$f":"P6*I6","v":0},null,null,"Мала Дівиця",{"$f":"IF(A6=\"\",\"-\",IF(M6=\"\",\"запланировано\",IF(P6=\"\",\"не отгружено\",IF(OR(L6>P6,L6<H6),\"частично отгружено\",IF(L6<P6,\"перегружено\",\"отгружено\")))))","v":"не отгружено"}]
["Добриво мінеральне фосфорне-фосфоритне борошно марка \"А\"(УКТ ЗЕД 3103 90 00 00)",null,"ТОВ \"Хімагростеп\"","2019-11-05",257,null,null,5,4200,{"$f":"H7*I7","v":21000},21000,5,"2019-11-05",null,{"$f":"P7*I7-K7","v":0},5,{"$f":"P7*I7","v":21000},"2019-11-05","*****","Черкаси",{"$f":"IF(A7=\"\",\"-\",IF(M7=\"\",\"запланировано\",IF(P7=\"\",\"не отгружено\",IF(OR(L7>P7,L7<H7),\"частично отгружено\",IF(L7<P7,\"перегружено\",\"отгружено\")))))","v":"отгружено"}]
["Добриво мінеральне фосфорне-фосфоритне борошно марка \"А\"(УКТ ЗЕД 3103 90 00 00)",null," ТОВ-фірма \"Агрохімпак-фірма\"","2019-11-06",259,null,null,5,4440,22200,null,{"$f":"K8/I8","v":0},null,null,{"$f":"P8*I8-K8","v":0},null,{"$f":"P8*I8","v":0},null,null,"Бахмач","запланировано"]